Cogmind - Beta 13 @@@ ROGUE MODE // 2024.04.24 @ 18:42:49 Player: Millea Result: Destroyed by G-50 Soldier with Heavy Laser Performance ------------- Evolutions (4) 2000 Regions Visited (15) 3000 Robots Destroyed (132) 660 Value Destroyed (5260) 5260 Prototype IDs (21) 420 Alien Tech Used (0) 0 Bonus (1327) 1327 TOTAL SCORE: 12667 Bonus ------- High Alert Combat Kills 811 Follower Combat Kills 135 Entered Garrisons 200 Met Data Miner 300 Acquired ECA 300 Friendly Fire -419 Cogmind --------- Core Integrity 0/850 Matter 134/300 Energy 40/100 System Corruption 12% Temperature Cool (9) Movement Flying (37) Location -6/Factory Parts ------- > --- POWER (1) -------- (None) > --- PROPULSION (7) --- Gravmag System Gravmag Array VTOL Module Nuclear Pulse Thruster Biomechanical Wings > --- UTILITY (5) ------ Advanced Sensor Array Improved Propulsion Shielding Hacking Suite Hacking Suite System Shield > --- WEAPON (2) ------- Heavy Pick > --- INVENTORY (5) ---- Encrypted Comm Array System Shield Authchip [Propulsion] Improved System Restoration Module Peak State ------------ > --- POWER ------------ Light Angular Momentum Engine > --- PROPULSION ------- Cooled Antigrav System Biomechanical Wings Biomechanical Wings > --- UTILITY ---------- Encrypted Comm Array Hacking Suite Hacking Suite Improved Hacking Suite System Shield > --- WEAPON ----------- Heavy Pick > --- INVENTORY -------- Cold Fusion Reactor Thermal Defense Suite Improved Hacking Suite Coil Gun [Rating: 52] Favorites ----------- Power Ion Engine Engine Ion Engine Power Core Nuclear Core Reactor Cold Fusion Reactor Propulsion Light Treads Treads Light Treads Leg Carbon-fiber Leg Wheel Wheel Hover Unit Gravmag System Flight Unit VTOL Module Utility High-capacity Storage Unit Device Experimental Sensor Array Storage High-capacity Storage Unit Processor Advanced Targeting Computer Hackware Hacking Suite Protection Light Armor Plating Weapon Beam Rifle Energy Gun Beam Rifle Ballistic Gun Improved Assault Rifle Ballistic Cannon Improved Light Cannon Launcher Rocket Launcher Special Weapon Plasma Flamer Slashing Weapon Axe Piercing Weapon Heavy Pick Build | -11 -10 -10 -10 -9 -8 -8 -8 -7 -7 -7 -7 -6 -6 -6 -6 ------- Run | Yrd Mat Min Exi Min Mat Gar Mat Fac Low Low Dat Pro Fac Was Fac Slots Evolved 8 | . . . . . 4 . . 2 . . . . 2 . . Power . | . . . . . . . . . . . . . . . . Propulsion 5 | . . . . . 3 . . 1 . . . . 1 . . Utility 3 | . . . . . 1 . . 1 . . . . 1 . . Weapon . | . . . . . . . . . . . . . . . . Parts Attached 144 | 8 7 3 . 2 25 19 10 6 4 1 1 1 36 1 20 Power 10 | 1 1 . . . 2 1 . 1 1 . . . 3 . . Engine 4 | 1 1 . . . . . . . 1 . . . 1 . . Core 4 | . . . . . 2 1 . 1 . . . . . . . Reactor 2 | . . . . . . . . . . . . . 2 . . Propulsion 54 | 2 1 . . . 14 6 7 1 2 1 . 1 13 1 5 Treads 22 | 2 1 . . . 13 6 . . . . . . . . . Leg 4 | . . . . . . . . . . . . . 4 . . Wheel 2 | . . . . . . . . . . . . . 2 . . Hover 3 | . . . . . . . . . . . . . . 1 2 Flight 23 | . . . . . 1 . 7 1 2 1 . 1 7 . 3 Utility 45 | 2 4 1 . . 5 4 2 2 1 . 1 . 10 . 13 Device 19 | 1 . 1 . . . . . 1 1 . . . 7 . 8 Storage 4 | 1 1 . . . . . 1 . . . . . 1 . . Processor 3 | . 1 . . . . 2 . . . . . . . . . Hackware 8 | . . . . . . . 1 1 . . . . 2 . 4 Protection 11 | . 2 . . . 5 2 . . . . 1 . . . 1 Artifact . | . . . . . . . . . . . . . . . . Weapon 35 | 3 1 2 . 2 4 8 1 2 . . . . 10 . 2 Energy Gun 3 | 1 1 . . . . . 1 . . . . . . . . Energy Cannon . | . . . . . . . . . . . . . . . . Ballistic Gun 16 | 2 . . . . 4 5 . . . . . . 5 . . Ballistic Cannon 4 | . . 1 . 1 . 2 . . . . . . . . . Launcher 5 | . . . . 1 . 1 . 1 . . . . 2 . . Special Weapon 1 | . . 1 . . . . . . . . . . . . . Impact Weapon . | . . . . . . . . . . . . . . . . Slashing Weapon 3 | . . . . . . . . 1 . . . . 2 . . Piercing Weapon 3 | . . . . . . . . . . . . . 1 . 2 Special Melee Weapon . | . . . . . . . . . . . . . . . . Unidentified Prototypes 8 | . . 1 . . 3 . 1 . . . . . 2 1 . Corrupted Parts 1 | . . . . . . . . . . . . . 1 . . System Corruption 7 | . . . . . . . . . . . . . 7 . . Parts Lost 43 | . . . . . 3 12 1 . 2 1 . 1 17 . 6 Power 3 | . . . . . . 2 . . 1 . . . . . . Propulsion 27 | . . . . . 1 6 1 . 1 1 . 1 13 . 3 Utility 7 | . . . . . 2 . . . . . . . 2 . 3 Weapon 6 | . . . . . . 4 . . . . . . 2 . . Highest Loss Streak 7 | . . . . . 1 7 1 . 2 1 . 1 6 . 3 To Critical Strikes . | . . . . . . . . . . . . . . . . Average Slot Usage (%) 89 | . 99 100 100 100 88 74 95 94 84 92 92 91 77 58 58 Engine 6 | . 14 14 14 14 . . 7 4 . 7 7 7 . 6 . Core 1 | . . . . . 8 2 . 2 . . . . . . . Treads 22 | . 27 28 28 28 38 27 . . . . . . . . . Flight 7 | . . . . . . . 42 45 45 46 46 45 21 13 9 Device 3 | . . 5 14 14 . . . 6 7 7 3 . 2 6 8 Storage 10 | . 14 14 14 14 9 9 9 7 7 7 7 7 5 . . Processor 2 | . . . . . . 15 14 3 . . . . . . . Hackware 4 | . . . . . . . 3 11 15 15 15 15 23 20 23 Protection 6 | . 13 8 . . 12 2 . . . . 3 7 . . . Energy Gun 6 | . 14 14 14 14 1 . 5 3 . . . . . . . Ballistic Gun 8 | . 14 4 . . 15 10 9 1 . . . . 3 . . Ballistic Cannon 3 | . . 6 14 12 1 7 3 . . . . . . . . Naked Turns . | . . . . . . . . . . . . . . . . Heaviest Build 68 | 13 53 55 53 53 68 58 18 21 21 18 18 18 31 12 12 Greatest Support 102 | 40 40 40 40 40 102 102 20 23 24 25 26 26 45 12 29 Greatest Overweight (x) 15 | . 1 1 1 1 1 15 1 . . 1 . . 1 . . Average Overweight (x) . | . . 1 1 1 . . . . . . . . . . . Largest Inventory Capacity 20 | 8 20 20 20 20 20 20 20 10 10 10 10 10 10 5 5 Average Capacity 16 | 7 19 20 20 20 20 20 10 10 10 10 10 10 9 5 5 Most Carried 20 | 6 20 20 20 20 20 20 20 10 10 10 9 10 10 5 5 Average Carried 16 | 4 18 19 20 20 19 18 10 9 9 9 9 9 8 5 4 Final Capacity 20 | 8 20 20 20 20 20 20 10 10 10 10 10 10 5 5 5 Final Carried 20 | 6 20 20 20 20 20 20 10 10 10 9 9 9 5 5 4 Class Distribution -------------------- 64% | Mutant 12% | Scavenger-Mutant 9% | Scavenger-Sprinter 9% | Hacker-Mutant Dominant Class ---------------- Mutant | -10/Materials Mutant | -10/Mines Mutant | -10/Exiles Mutant | -9/Mines Mutant | -8/Materials Mutant | -8/Garrison Sprinter | -8/Materials Scavenger-Sprinter | -7/Factory Scavenger-Sprinter | -7/Lower Caves Scavenger-Sprinter | -7/Lower Caves Scavenger-Sprinter | -7/Data Miner Scavenger-Sprinter | -6/Proximity Caves Hacker-Mutant | -6/Factory Hacker-Mutant | -6/Waste Hacker-Mutant | -6/Factory Resources | -11 -10 -10 -10 -9 -8 -8 -8 -7 -7 -7 -7 -6 -6 -6 -6 ----------- Run | Yrd Mat Min Exi Min Mat Gar Mat Fac Low Low Dat Pro Fac Was Fac Matter Collected 3480 | 271 269 56 . 14 1038 683 139 98 189 82 . 20 352 . 269 Remotely . | . . . . . . . . . . . . . . . . Salvage Created 4494 | 98 439 82 . 18 1844 862 186 98 149 46 . . 405 . 267 Parts 250 | 9 22 3 . 2 97 68 5 9 8 2 . . 18 . 7 Haulers Intercepted 11 | . 2 . . . 4 . 1 . . . . . 2 . 2 Recyclers Shooed 4 | . 2 . . . 1 . 1 . . . . . . . . Parts Field Recycled . | . . . . . . . . . . . . . . . . Retrieved Matter . | . . . . . . . . . . . . . . . . Parts Self-Destructed 6 | . . . . . . . . . 4 2 . . . . . Prevented . | . . . . . . . . . . . . . . . . Kills | -11 -10 -10 -10 -9 -8 -8 -8 -7 -7 -7 -7 -6 -6 -6 -6 ------- Run | Yrd Mat Min Exi Min Mat Gar Mat Fac Low Low Dat Pro Fac Was Fac Combat Hostiles Destroyed 96 | . 13 3 . 3 31 34 . 3 1 1 . . 5 . 2 Melee 4 | . . . . . . . . . 1 1 . . . . 2 Guns 67 | . 13 2 . . 31 19 . . . . . . 2 . . Cannons 6 | . . 1 . . . 5 . . . . . . . . . AOE 19 | . . . . 3 . 10 . 3 . . . . 3 . . Classes Destroyed 13 | 2 4 . . . 5 1 . . 1 . . . . . . Worker 5 | 2 . . . . 3 . . . . . . . . . . Builder 1 | . . . . . 1 . . . . . . . . . . Tunneler 4 | 3 . . . . . . . . . . . . 1 . . Hauler 11 | . 2 . . . 4 . 1 . . . . . 2 . 2 Recycler 4 | . . . . . 3 . 1 . . . . . . . . Operator 4 | . . . . . 2 . 1 1 . . . . . . . Watcher 6 | . 2 . . . 1 . . 1 . . . . 2 . . Swarmer 41 | . 9 . . 3 6 17 . 3 . . . . 3 . . Cutter 2 | . . . . . . 1 . . . . . . . . 1 Grunt 35 | . 4 2 . . 18 7 1 . . . . . 2 . 1 Sentry 14 | . . . . . 5 9 . . . . . . . . . Hunter 2 | . . . . . 2 . . . . . . . . . . Programmer 2 | . . . . . . . . . 1 1 . . . . . Decomposer 2 | . . . . . . . . . 2 . . . . . . Packrat 1 | . . . . . . . . . 1 . . . . . . Best Kill Streak 12 | 5 3 2 . 3 7 12 1 4 1 1 . . 4 . 2 Combat Bots Only 12 | . 3 2 . 3 5 12 . 3 1 1 . . 3 . 1 Max Kills in Single Turn 3 | 2 1 1 . 3 2 3 2 3 1 1 . . 2 . 1 Gunslinging . | . . . . . . . . . . . . . . . . Exploded 3 | . . . . 3 . 3 . 3 . . . . 2 . . Melee 1 | . . . . . . . . . 1 1 . . . . 1 Uniques/NPCs Destroyed 1 | . . 1 . . . . . . . . . . . . . YI-UF0 (-10/Mines) Combat | -11 -10 -10 -10 -9 -8 -8 -8 -7 -7 -7 -7 -6 -6 -6 -6 -------- Run | Yrd Mat Min Exi Min Mat Gar Mat Fac Low Low Dat Pro Fac Was Fac Hostile Shots Fired 694 | . 44 11 . 2 165 156 16 6 10 4 4 32 157 1 86 Missed 226 | . 9 3 . 1 33 36 7 2 1 1 2 25 63 1 42 Damage Taken 7001 | . 339 226 . 38 1759 1604 227 64 136 47 95 92 1720 . 654 Core 1465 | . 35 43 . . 106 204 51 . 58 . 95 18 513 . 342 Absorbed by Shields . | . . . . . . . . . . . . . . . . Redirected to Shielding 164 | . . . . . 101 . . . . . . 42 . . 21 Regen/Repaired (Parts) 139 | . 86 . . . 24 . 29 . . . . . . . . Core Remaining (%) 69 | 100 . . . 68 . . 34 . . . . 75 . . . Volleys Fired 334 | 5 39 12 . 1 141 93 15 1 . . . . 27 . . Largest 2 | 2 2 2 . 1 2 2 2 1 . . . . 2 . . Hottest 156 | 70 76 156 . 30 95 62 79 33 . . . . 58 . . Shots Fired 602 | 10 76 22 . 1 272 146 30 1 . . . . 44 . . Gun 525 | 10 76 14 . . 267 92 27 . . . . . 39 . . Cannon 55 | . . 2 . . 5 45 3 . . . . . . . . Launcher 16 | . . . . 1 . 9 . 1 . . . . 5 . . Special 6 | . . 6 . . . . . . . . . . . . . Kinetic 515 | 5 39 6 . . 271 137 18 . . . . . 39 . . Thermal 71 | 5 37 16 . . 1 . 12 . . . . . . . . Explosive 16 | . . . . 1 . 9 . 1 . . . . 5 . . Electromagnetic . | . . . . . . . . . . . . . . . . Robot Hit Streak 26 | 5 9 10 . . 10 26 7 8 . . . . 16 . . Robot Miss Streak 6 | 1 6 2 . . 4 2 2 . . . . . 4 . . Penetration Max 1 | . . . . . . . . . . . . . 1 . . Secondary Targets 13 | . 3 . . . 9 1 . . . . . . . . . Max Gunslinging Chain 1 | . 1 . . . 1 1 . . . . . . . . . Shots Hit Robots 424 | 5 44 17 . . 190 82 21 5 8 1 1 . 43 . 7 Core Hits 225 | 5 20 7 . 3 81 49 7 4 3 1 . . 40 . 5 Critical Kills . | . . . . . . . . . . . . . . . . Critical Parts Destroyed 1 | . . . . . . 1 . . . . . . . . . Critical Strikes 9 | . 5 1 . . . 1 2 . . . . . . . . Burn 8 | . 5 1 . . . . 2 . . . . . . . . Destroy 1 | . . . . . . 1 . . . . . . . . . Melee Attacks 71 | . . . . . . . . 6 15 8 7 4 17 . 14 Impact . | . . . . . . . . . . . . . . . . Slashing 50 | . . . . . . . . 6 15 8 7 4 10 . . Piercing 21 | . . . . . . . . . . . . . 7 . 14 Sneak Attacks 9 | . . . . . . . . . 3 1 1 . 2 . 2 Combat Hostiles 1 | . . . . . . . . . . 1 . . . . . Follow-up Attacks . | . . . . . . . . . . . . . . . . Damage Inflicted 9415 | 69 686 276 . 166 3271 2113 361 354 373 76 72 . 1226 . 372 Guns 6140 | 69 686 141 . . 3115 1165 291 . . . . . 673 . . Cannons 389 | . . 43 . . 59 217 70 . . . . . . . . Explosions 1258 | . . . . 166 . 731 . 161 . . . . 200 . . Melee 1432 | . . . . . . . . 193 373 76 72 . 346 . 372 Ramming 131 | . . 27 . . 97 . . . . . . . 7 . . Kinetic 5764 | 32 235 54 . . 3160 1382 228 . . . . . 673 . . Thermal 830 | 37 451 195 . . 14 . 133 . . . . . . . . Explosive 1258 | . . . . 166 . 731 . 161 . . . . 200 . . Electromagnetic . | . . . . . . . . . . . . . . . . Impact . | . . . . . . . . . . . . . . . . Slashing 1026 | . . . . . . . . 193 373 76 72 . 312 . . Piercing 406 | . . . . . . . . . . . . . 34 . 372 Highest Corruption 16 | . . . . . . . . . 2 2 2 2 7 16 16 Average Corruption 6 | . . . . . . . . . 1 2 2 2 7 11 13 Corruption Purged 4 | . . . . . . . . . . . . . . . 4 Corruption Blocked 1 | . . . . . . . . . . . . . . . 1 Effects 45 | . . . . . . . . . 3 3 . 2 15 2 20 Message Errors 9 | . . . . . . . . . 1 1 . . 4 . 3 Matter Fused 15 | . . . . . . . . . 1 2 . . 5 2 5 Heat Flow Errors 7 | . . . . . . . . . . . . 1 3 . 3 Energy Discharges 4 | . . . . . . . . . 1 . . . 1 . 2 Data Loss (minor) 5 | . . . . . . . . . . . . 1 1 . 3 Data Loss (major) 3 | . . . . . . . . . . . . . 1 . 2 Misdirections 2 | . . . . . . . . . . . . . . . 2 Overload Shots . | . . . . . . . . . . . . . . . . Overflow Damage 322 | . . 1 . 27 2 55 . 80 118 . . . 25 . 14 Projectiles 1 | . . 1 . . . . . . . . . . . . . Explosions 97 | . . . . 27 . 55 . . . . . . 15 . . Melee 224 | . . . . . 2 . . 80 118 . . . 10 . 14 Knockbacks 3 | . . . . . 1 1 1 . . . . . . . . Impact 1 | . . . . . 1 . . . . . . . . . . Kinetic 2 | . . . . . . 1 1 . . . . . . . . Secondary . | . . . . . . . . . . . . . . . . Self-Inflicted Damage 59 | . . . . 31 . . . . . . . . 28 . . Shots 2 | . . . . 1 . . . . . . . . 1 . . Rammed 9 | . . 4 . . 5 . . . . . . . . . . Targets Rammed 14 | . . 4 . . 7 . . . . . . . 3 . . Kicked 3 | . . . . . . . . . . . . . 3 . . Crushed 2 | . . . . . 2 . . . . . . . . . . Highest Temperature 415 | 27 168 415 . . 132 69 68 162 6 91 71 311 227 . 228 Average Temperature 52 | 11 57 191 . . 29 19 26 56 3 38 33 72 55 . 103 Received Heat Transfer 2191 | . 36 27 . . 765 621 36 . . . . 9 457 . 240 Effects 4 | . . 3 . . . . . . . . . 1 . . . Shutdowns 2 | . . 2 . . . . . . . . . . . . . Energy Bleed 1 | . . 1 . . . . . . . . . . . . . Interference 1 | . . . . . . . . . . . . 1 . . . Siege Activations . | . . . . . . . . . . . . . . . . Robots Corrupted . | . . . . . . . . . . . . . . . . Combat Hostiles . | . . . . . . . . . . . . . . . . Parts Fried 2 | . . . . . 2 . . . . . . . . . . Impact Corruptions 1 | . . . . . 1 . . . . . . . . . . Robots Melted . | . . . . . . . . . . . . . . . . Combat Hostiles . | . . . . . . . . . . . . . . . . Parts Melted 8 | . 5 1 . . . 1 1 . . . . . . . . Heat Transferred 2916 | 111 1517 807 . . 37 . 444 . . . . . . . . Parts Sabotaged . | . . . . . . . . . . . . . . . . Parts Stolen . | . . . . . . . . . . . . . . . . Parts Stripped . | . . . . . . . . . . . . . . . . Power Chain Reactions . | . . . . . . . . . . . . . . . . Alert | -11 -10 -10 -10 -9 -8 -8 -8 -7 -7 -7 -7 -6 -6 -6 -6 ------- Run | Yrd Mat Min Exi Min Mat Gar Mat Fac Low Low Dat Pro Fac Was Fac Peak Influence 2038 | 25 264 56 . 110 831 2038 1040 414 . . . . 271 83 536 Initial 993 | . 16 6 . . 42 540 993 392 . . . . 31 68 58 Average 360 | 5 82 10 . 107 353 1330 944 199 . . . . 136 73 270 Maximum Alert Level 5 | . 1 . . . 3 5 3 2 . . . . 1 . 2 Low Security (%) 61 | 100 94 100 . 100 39 . . 52 . . . . 75 100 34 Level 1 12 | . 5 . . . 25 . . 38 . . . . 24 . 50 Level 2 6 | . . . . . 19 8 . 9 . . . . . . 14 Level 3 7 | . . . . . 15 13 100 . . . . . . . . Level 4 8 | . . . . . . 54 . . . . . . . . . Level 5 3 | . . . . . . 22 . . . . . . . . . High Security . | . . . . . . . . . . . . . . . . Max Security . | . . . . . . . . . . . . . . . . Squads Dispatched 30 | . 2 . . . 5 . 2 1 . . . . 12 . 8 Investigation 19 | . 2 . . . 2 . 2 1 . . . . 7 . 5 Extermination 2 | . . . . . . . . . . . . . 1 . 1 Reinforcement 5 | . . . . . 3 . . . . . . . 1 . 1 Assault 1 | . . . . . . . . . . . . . . . 1 Garrison 3 | . . . . . . . . . . . . . 3 . . Intercept . | . . . . . . . . . . . . . . . . Searches Triggered . | . . . . . . . . . . . . . . . . Construction Impeded 1 | . . . . . 1 . . . . . . . . . . Haulers Reinforced . | . . . . . . . . . . . . . . . . Active Scanning Responses . | . . . . . . . . . . . . . . . . Cargo Convoy Interrupts . | . . . . . . . . . . . . . . . . Stealth | -11 -10 -10 -10 -9 -8 -8 -8 -7 -7 -7 -7 -6 -6 -6 -6 --------- Run | Yrd Mat Min Exi Min Mat Gar Mat Fac Low Low Dat Pro Fac Was Fac Distress Signals 16 | . 2 . . . 8 . . . . . . . 2 . 4 Communications Jammed . | . . . . . . . . . . . . . . . . Distress Signals . | . . . . . . . . . . . . . . . . Times Spotted 239 | . 25 5 . 4 56 31 12 11 1 1 4 6 33 6 44 Peak Tracking Total 11 | . 5 2 . 4 7 8 9 4 1 1 4 3 11 6 11 Tactical Retreats 32 | . . 1 . . 1 2 . 1 . 1 . 3 11 . 12 Traps | -11 -10 -10 -10 -9 -8 -8 -8 -7 -7 -7 -7 -6 -6 -6 -6 ------- Run | Yrd Mat Min Exi Min Mat Gar Mat Fac Low Low Dat Pro Fac Was Fac Traps Triggered 14 | . 1 . . . 2 5 2 . . . . . 4 . . Indirectly . | . . . . . . . . . . . . . . . . Trap Hack Attempts . | . . . . . . . . . . . . . . . . Triggered . | . . . . . . . . . . . . . . . . Disarmed . | . . . . . . . . . . . . . . . . Reprogrammed . | . . . . . . . . . . . . . . . . Reused . | . . . . . . . . . . . . . . . . Traps Extracted . | . . . . . . . . . . . . . . . . Installed . | . . . . . . . . . . . . . . . . Triggered 2 | . . . . . . . 1 . . . . 1 . . . Machines | -11 -10 -10 -10 -9 -8 -8 -8 -7 -7 -7 -7 -6 -6 -6 -6 ---------- Run | Yrd Mat Min Exi Min Mat Gar Mat Fac Low Low Dat Pro Fac Was Fac Machines Disabled 18 | . . . . . 3 12 . 1 . . 1 . . . 1 Max in Single Turn 1 | . . . . . 1 1 . 1 . . 1 . . . 1 Garrison Access 1 | . . . . . . . . . . . . . . . 1 Garrison Relay 9 | . . . . . . 9 . . . . . . . . . Machines Repaired . | . . . . . . . . . . . . . . . . Machines Dismantled . | . . . . . . . . . . . . . . . . Machines Sabotaged . | . . . . . . . . . . . . . . . . Overloaded Fab Kills . | . . . . . . . . . . . . . . . . Hacking | -11 -10 -10 -10 -9 -8 -8 -8 -7 -7 -7 -7 -6 -6 -6 -6 --------- Run | Yrd Mat Min Exi Min Mat Gar Mat Fac Low Low Dat Pro Fac Was Fac Machines Accessed 63 | . 11 . 2 . 8 4 7 5 . 1 4 . 10 . 11 Terminals 37 | . 8 . . . 4 4 5 5 . . . . 4 . 7 Fabricators 5 | . . . . . . . . . . . . . 2 . 3 Repair Stations 4 | . 1 . . . 2 . 1 . . . . . . . . Recycling Units 3 | . 2 . . . . . . . . . . . 1 . . Scanalyzers 4 | . . . . . 1 . 1 . . . . . 2 . . Garrison Access 3 | . . . . . 1 . . . . . . . 1 . 1 Total Hacks 239 | . 28 . 2 . 23 7 28 29 . 1 29 . 53 . 39 Successful 134 | . 13 . 2 . 10 2 12 14 . 1 29 . 36 . 15 Failed 105 | . 15 . . . 13 5 16 15 . . . . 17 . 24 Catastrophic 18 | . 2 . . . 1 1 5 . . . . . 1 . 8 Database Lockouts . | . . . . . . . . . . . . . . . . Manual 119 | . 20 . . . 7 . 19 22 . . . . 28 . 23 Terminals 135 | . 22 . . . 12 7 20 29 . . . . 16 . 29 Fabricators 13 | . . . . . . . . . . . . . 5 . 8 Repair Stations 14 | . 3 . . . 7 . 4 . . . . . . . . Recycling Units 13 | . 3 . . . . . . . . . . . 10 . . Scanalyzers 26 | . . . . . 3 . 4 . . . . . 19 . . Garrison Access 6 | . . . . . 1 . . . . . . . 3 . 2 Terminal Hacks 60 | . 6 . 2 . 4 2 3 7 . 1 29 . . . 6 Record 13 | . . . 2 . . . . . . . 11 . . . . Part Schematic 16 | . 1 . . . 3 . . . . . 12 . . . . Robot Schematic 3 | . . . . . . . . . . . 3 . . . . Robot Analysis 4 | . 4 . . . . . . . . . . . . . . Prototype ID Bank 4 | . 1 . . . . . . . . . 3 . . . . Open Door 1 | . . . . . . . . . . 1 . . . . . Branch Access Points 2 | . . . . . . . . 1 . . . . . . 1 Emergency Access Points 1 | . . . . . . 1 . . . . . . . . . Machine Index 1 | . . . . . . . . . . . . . . . 1 Terminal Index 1 | . . . . . . . . 1 . . . . . . . Alert Level 1 | . . . . . . . 1 . . . . . . . . Unreport Threat 8 | . . . . . . . 2 3 . . . . . . 3 Surveillance Status 1 | . . . . . . . . 1 . . . . . . . Hauler Manifests 2 | . . . . . 1 . . 1 . . . . . . . Zone Layout 1 | . . . . . . . . . . . . . . . 1 Garrison Registry 1 | . . . . . . 1 . . . . . . . . . Fabricator Hacks 9 | . . . . . . . . . . . . . 5 . 4 Load Schematic 5 | . . . . . . . . . . . . . 2 . 3 Build 4 | . . . . . . . . . . . . . 3 . 1 Repair Station Hacks 9 | . 3 . . . 3 . 3 . . . . . . . . Scan Component 5 | . 2 . . . 2 . 1 . . . . . . . . Repair 3 | . 1 . . . 1 . 1 . . . . . . . . Refit 1 | . . . . . . . 1 . . . . . . . . Recycling Unit Hacks . | . . . . . . . . . . . . . . . . Scanalyzer 21 | . . . . . 2 . 2 . . . . . 17 . . Insert Component 10 | . . . . . 1 . 1 . . . . . 8 . . Analyze 11 | . . . . . 1 . 1 . . . . . 9 . . Garrison Access Hacks 1 | . . . . . 1 . . . . . . . . . . Unlock Access 1 | . . . . . 1 . . . . . . . . . . Unauthorized Hacks 34 | . 4 . . . . . 4 7 . . . . 14 . 5 Terminals 23 | . 2 . . . . . 4 7 . . . . 7 . 3 Track 10 | . . . . . . . 1 4 . . . . 2 . 3 Assimilate 3 | . . . . . . . 2 . . . . . 1 . . Botnet 4 | . . . . . . . . 2 . . . . 2 . . Disrupt 1 | . 1 . . . . . . . . . . . . . . Operators 2 | . 1 . . . . . . 1 . . . . . . . Search 3 | . . . . . . . 1 . . . . . 2 . . Fabricators 2 | . . . . . . . . . . . . . . . 2 Recompile 2 | . . . . . . . . . . . . . . . 2 Repair Stations . | . . . . . . . . . . . . . . . . Recycling Units 6 | . 2 . . . . . . . . . . . 4 . . Monitor 1 | . . . . . . . . . . . . . 1 . . Reject 1 | . . . . . . . . . . . . . 1 . . Recyclers 1 | . . . . . . . . . . . . . 1 . . Mask 1 | . . . . . . . . . . . . . 1 . . Tunnel 2 | . 2 . . . . . . . . . . . . . . Scanalyzers . | . . . . . . . . . . . . . . . . Garrison Access 3 | . . . . . . . . . . . . . 3 . . Broadcast 1 | . . . . . . . . . . . . . 1 . . Reprogram 1 | . . . . . . . . . . . . . 1 . . Watchers 1 | . . . . . . . . . . . . . 1 . . Data Cores Recovered 2 | . . . . . 1 . . 1 . . . . . . . Used . | . . . . . . . . . . . . . . . . Hacking Detections 50 | . 9 . . . 7 4 7 5 . . . . 9 . 9 Full Trace Events 17 | . 2 . . . 3 2 2 1 . . . . 4 . 3 Feedback Events 1 | . . . . . . . . . . . . . . . 1 Hackware Fried 1 | . . . . . . . . . . . . . . . 1 Feedback Blocked 1 | . . . . . . . . . . . . . 1 . . Robot Schematics Acquired 3 | . . . . . . . . . . . 3 . . . . Robots Built . | . . . . . . . . . . . . . . . . Authchips . | . . . . . . . . . . . . . . . . Time . | . . . . . . . . . . . . . . . . Total Robot Build Rating . | . . . . . . . . . . . . . . . . Part Schematics Acquired 25 | . 1 . . . 3 . 1 . . . 12 . 8 . . Parts Built 3 | . . . . . . . . . . . . . 2 . 1 Authchips 1 | . . . . . . . . . . . . . . . 1 Time 475 | . . . . . . . . . . . . . 399 . 76 Total Part Build Rating 15 | . . . . . . . . . . . . . 10 . 5 Parts Repaired 3 | . 1 . . . 1 . 1 . . . . . . . . Time 172 | . 26 . . . 108 . 38 . . . . . . . . Parts Recycled . | . . . . . . . . . . . . . . . . Recycled Matter . | . . . . . . . . . . . . . . . . Retrieved Matter . | . . . . . . . . . . . . . . . . Retrieved Components . | . . . . . . . . . . . . . . . . Parts Scanalyzed 10 | . . . . . 1 . 1 . . . . . 8 . . Part Schematics Acquired 9 | . . . . . . . 1 . . . . . 8 . . Parts Damaged 1 | . . . . . . . . . . . . . 1 . . Bothacking | -11 -10 -10 -10 -9 -8 -8 -8 -7 -7 -7 -7 -6 -6 -6 -6 ------------ Run | Yrd Mat Min Exi Min Mat Gar Mat Fac Low Low Dat Pro Fac Was Fac Used RIF Installer . | . . . . . . . . . . . . . . . . Robots Hacked . | . . . . . . . . . . . . . . . . Non-combat . | . . . . . . . . . . . . . . . . Combat . | . . . . . . . . . . . . . . . . Robot Hacks Applied . | . . . . . . . . . . . . . . . . Relay Couplers Released 38 | . . . . . . 37 . . . . . . . . 1 Machine Destruction 38 | . . . . . . 37 . . . . . . . . 1 Fabnet Peak Effective % . | . . . . . . . . . . . . . . . . Robots Rewired 3 | . . . . . . 3 . . . . . . . . . Allies Hacked . | . . . . . . . . . . . . . . . . Hacks Repelled . | . . . . . . . . . . . . . . . . Allies | -11 -10 -10 -10 -9 -8 -8 -8 -7 -7 -7 -7 -6 -6 -6 -6 -------- Run | Yrd Mat Min Exi Min Mat Gar Mat Fac Low Low Dat Pro Fac Was Fac Total Allies 10 | . . 4 . . . 3 1 . . . . . 2 . . Largest Group 4 | . . 4 3 3 3 3 3 . . . . . 1 . . Highest-Rated Group 71 | . . 71 40 40 40 48 48 . . . . . 41 . . Highest-Rated Ally 41 | . . 31 16 16 16 16 16 . . . . . 41 . . Warlord Squad Rendezvous 4 | . . . . . . . . . . . . . 1 . 3 Dakka 2 | . . . . . . . . . . . . . . . 2 Geek 2 | . . . . . . . . . . . . . 1 . 1 Total Orders . | . . . . . . . . . . . . . . . . Ally Attacks 54 | . . . . 3 28 16 6 . . . . . 1 . . Total Damage 610 | . . . . 12 297 184 80 . . . . . 37 . . Kills 7 | . . . . 1 3 1 2 . . . . . . . . Allies Corrupted . | . . . . . . . . . . . . . . . . Allies Melted . | . . . . . . . . . . . . . . . . Intel | -11 -10 -10 -10 -9 -8 -8 -8 -7 -7 -7 -7 -6 -6 -6 -6 ------- Run | Yrd Mat Min Exi Min Mat Gar Mat Fac Low Low Dat Pro Fac Was Fac Robot Analysis Total 4 | . 4 . . . . . . . . . . . . . . Derelict Logs Recovered 4 | . . 1 . . . . . . 2 . . 1 . . . Drone Launches . | . . . . . . . . . . . . . . . . Drone Recoveries . | . . . . . . . . . . . . . . . . Exploration | -11 -10 -10 -10 -9 -8 -8 -8 -7 -7 -7 -7 -6 -6 -6 -6 ------------- Run | Yrd Mat Min Exi Min Mat Gar Mat Fac Low Low Dat Pro Fac Was Fac Turns Passed 10777 | 104 2159 1619 953 95 1799 1420 238 160 336 226 61 175 881 33 518 Spaces Moved 8060 | 51 820 648 398 38 726 624 465 363 479 497 89 359 1419 83 1001 Core 188 | 9 . . . . . 3 . . . . . . . . 176 Treads 3293 | 42 820 648 398 38 726 621 . . . . . . . . . Legs 29 | . . . . . . . . . . . . . 29 . . Wheels 204 | . . . . . . . . . . . . . 204 . . Hover 112 | . . . . . . . . . . . . . . . 112 Flight 4234 | . . . . . . . 465 363 479 497 89 359 1186 83 713 Fastest Speed 17 | 50 160 240 240 240 156 156 23 21 21 20 17 17 19 37 34 Average Speed 105 | 140 233 240 240 240 163 179 31 21 26 28 19 20 41 37 42 Slowest Speed 800 | 160 240 240 240 240 240 800 86 24 27 94 20 21 190 37 60 Overloaded Moves 30 | . . . . . . . . . . . 15 15 . . . Propulsion Burnouts . | . . . . . . . . . . . . . . . . Robots Hopped 28 | . . . . . . . 13 1 . . . . 7 4 3 Cave-ins Triggered . | . . . . . . . . . . . . . . . . Exploration Rate (%) 55 | 3 94 93 88 11 59 83 43 8 81 53 77 54 30 79 30 Regions Visited 15 Branch Regions 7 Pre-discovered Areas 5 | . 2 1 . . . . . . 1 . 1 . . . . Known Exits Taken 2 | . . . . . 1 . . 1 . . . . . . . Unknown Exits Taken 10 | 1 1 1 1 1 . . 1 . 1 1 1 1 . . . Scrap Searched 9 | . . 2 . . . . . . 3 2 . 2 . . . Spaces Dug 51 | . . . . 6 . 4 . 1 6 7 2 4 19 . 2 Terrain Destroyed 75 | . . . . 6 1 13 . 5 6 7 2 4 29 . 2 Melee 29 | . . . . . . . . 1 6 7 2 4 7 . 2 Projectile 1 | . . . . . 1 . . . . . . . . . . AOE 45 | . . . . 6 . 13 . 4 . . . . 22 . . Terrain Rammed . | . . . . . . . . . . . . . . . . Walls Destroyed . | . . . . . . . . . . . . . . . . Machines Disabled . | . . . . . . . . . . . . . . . . Actions | -11 -10 -10 -10 -9 -8 -8 -8 -7 -7 -7 -7 -6 -6 -6 -6 --------- Run | Yrd Mat Min Exi Min Mat Gar Mat Fac Low Low Dat Pro Fac Was Fac Total 9626 | 70 997 683 397 42 1122 791 519 431 661 565 119 454 1631 80 1064 Wait 783 | . 84 8 . . 178 17 26 50 159 60 23 90 71 1 16 Move 7993 | 50 819 647 397 37 726 621 440 360 478 496 88 358 1405 76 995 Hop 24 | . . . . . . . 11 1 . . . . 7 2 3 Pick Up 105 | 7 30 4 . 1 17 8 4 2 2 . . 1 21 . 8 Fast Attach 56 | 5 1 1 . . 12 8 3 3 2 . . . 14 1 6 Attach 44 | 2 . . . . 4 6 6 1 1 1 . 1 15 . 7 Detach 13 | . . . . . 1 . . 1 . . . . 9 . 2 Swap 44 | 1 6 2 . 2 9 5 1 2 1 . 1 . 7 . 7 Drop 102 | . 18 5 . 1 27 8 13 4 3 . . . 17 . 6 Fire 334 | 5 39 12 . 1 141 93 15 1 . . . . 27 . . Melee 71 | . . . . . . . . 6 15 8 7 4 17 . 14 Ram . | . . . . . . . . . . . . . . . . Kick 3 | . . . . . . . . . . . . . 3 . . Crush 11 | . . 4 . . 7 . . . . . . . . . . Escape Stasis 26 | . . . . . . 8 . . . . . . 18 . . Rewire 17 | . . . . . . 17 . . . . . . . . . Trap . | . . . . . . . . . . . . . . . . Miscellaneous . | . . . . . . . . . . . . . . . . Route ------- -11/Scrapyard -10/Materials (discovered 4 exits: [*Mat x3] / [*Min]) -10/Mines (discovered 2 exits: [*Mat] / *Exi) -10/Exiles -9/Mines -8/Materials -8/Garrison (discovered 3 exits: *Mat x3) -8/Materials -7/Factory (discovered 2 exits: *Low x2) -7/Lower Caves -7/Lower Caves -7/Data Miner -6/Proximity Caves -6/Factory -6/Waste -6/Factory (discovered 2 exits: Low x2) History --------- Turn | Location | Event 7 | -11/Scrapyard | Discovered new exit (range 16) 105 | -11/Scrapyard | Entered Materials 313 | -10/Materials | Build established: Mutant 379 | -10/Materials | Discovered new exit (range 11) 552 | -10/Materials | Discovered new exit (range 15) 930 | -10/Materials | Discovered new exit (range 13) 1576 | -10/Materials | Discovered new exit (range 16) 2138 | -10/Materials | Repaired Lgt. Treads 2264 | -10/Materials | Entered Mines 2272 | -10/Mines | Met a Derelict bent on vengeance 2402 | -10/Mines | Discovered new exit (range 6) 2699 | -10/Mines | Deemed a non-threat by the Exiles lab entrance 2699 | -10/Mines | Discovered new exit (range 5) 2797 | -10/Mines | A weapon hastily lodged in a ceiling crevice suddenly fell to the ground 2993 | -10/Mines | Learned location of Zion (-6) 3078 | -10/Mines | YI-UF0 nonchalantly dropped a Grenade Launcher on the ground 3124 | -10/Mines | Destroyed YI-UF0 3268 | -10/Mines | Found a damaged Exp. Sensor Array with a note attached 3273 | -10/Mines | Found Prototype Device 3274 | -10/Mines | Identified Exp. Sensor Array 3451 | -10/Mines | Received a Mining Laser from a helpful Derelict 3496 | -10/Mines | Assisted by bots powering up and referring to "LRC-V3" 3883 | -10/Mines | Entered Exiles 3883 | -10/Exiles | Found Exiles lab abandoned 3883 | -10/Exiles | Accompanied by 3 allies 4810 | -10/Exiles | Discovered new exit (range 11) 4836 | -10/Exiles | Entered Mines 4836 | -9/Mines | Accompanied by 3 allies 4870 | -9/Mines | Discovered new exit (range 9) 4875 | -9/Mines | Received a Rocket Launcher from a helpful Derelict 4931 | -9/Mines | Entered Materials 4931 | -8/Materials | Accompanied by 3 allies 4931 | -8/Materials | Evolved 4 slots: Propulsion x3, Utility x1 5382 | -8/Materials | Lost 3 allies 5707 | -8/Materials | Repaired Exp. Sensor Array 5879 | -8/Materials | Build established: Scavenger-Mutant 6730 | -8/Materials | Identified exit to Garrison 6730 | -8/Materials | Entered Garrison 6846 | -8/Garrison | Garrison Relay disabled 6954 | -8/Garrison | Triggered checkpoint 6956 | -8/Garrison | Triggered checkpoint 6958 | -8/Garrison | Triggered checkpoint 7002 | -8/Garrison | Destroyed 12 combat bots 7008 | -8/Garrison | Triggered checkpoint 7044 | -8/Garrison | Garrison Relay disabled 7132 | -8/Garrison | Core integrity fell below 50% 7167 | -8/Garrison | Lost 7 parts (1p4n2w) 7335 | -8/Garrison | Discovered new exit (range 63) 7335 | -8/Garrison | Discovered new exit (range 97) 7335 | -8/Garrison | Discovered new exit (range 15) 7337 | -8/Garrison | Build established: Mutant 7378 | -8/Garrison | Attempted to access garrison exit controls, blocked by remote lockdown 7440 | -8/Garrison | Triggered checkpoint 7498 | -8/Garrison | Triggered checkpoint 7510 | -8/Garrison | Garrison Relay disabled 7743 | -8/Garrison | Attempted to access garrison exit controls, blocked by remote lockdown 7778 | -8/Garrison | Garrison Relay disabled 7780 | -8/Garrison | Garrison Relay disabled 7824 | -8/Garrison | Garrison Relay disabled 7834 | -8/Garrison | Garrison Relay disabled 7894 | -8/Garrison | Triggered checkpoint 7931 | -8/Garrison | Garrison Relay disabled 8000 | -8/Garrison | Triggered checkpoint 8068 | -8/Garrison | Triggered checkpoint 8094 | -8/Garrison | Garrison Relay disabled 8098 | -8/Garrison | Triggered checkpoint 8150 | -8/Garrison | Entered Materials 8150 | -8/Materials | Accompanied by 3 allies 8230 | -8/Materials | Repaired Surge Thruster 8386 | -8/Materials | Discovered new exit (range 8) 8388 | -8/Materials | Entered Factory 8388 | -7/Factory | Evolved 2 slots: Propulsion x1, Utility x1 8502 | -7/Factory | Identified exit to Lower Caves 8548 | -7/Factory | Entered Lower Caves 8567 | -7/Lower Caves | Met a Warlord Commander 8568 | -7/Lower Caves | Learned location of Warlord (-4) 8569 | -7/Lower Caves | Warlord Commander delivered Encrypted Comm Array 8569 | -7/Lower Caves | Found Encrypted Comm Array 8606 | -7/Lower Caves | Build established: Scavenger-Sprinter 8645 | -7/Lower Caves | Learned 4 Factory zone layouts 8842 | -7/Lower Caves | Encountered a Warlord checkpoint 8855 | -7/Lower Caves | Discovered new exit (range 13) 8884 | -7/Lower Caves | Entered another Lower Caves area 9085 | -7/Lower Caves | Discovered new exit (range 12) 9110 | -7/Lower Caves | Entered Data Miner 9110 | -7/Data Miner | Discovered new exit (range 6) 9114 | -7/Data Miner | Met Data Miner 9118 | -7/Data Miner | Learned location of Section 7 (-2) 9118 | -7/Data Miner | Acquired the access code to Warlord's prototype stash 9121 | -7/Data Miner | Received God Mode back door access code from Data Miner 9151 | -7/Data Miner | Data Conduit disabled 9171 | -7/Data Miner | Entered Proximity Caves 9173 | -6/Proximity Caves | Learned Factory non-interactive machine intel 9335 | -6/Proximity Caves | Attracted the attention of an 0b10 checkpoint 9345 | -6/Proximity Caves | Discovered new exit (range 5) 9346 | -6/Proximity Caves | Entered Factory 9346 | -6/Factory | Evolved 2 slots: Propulsion x1, Utility x1 9348 | -6/Factory | Loaded intel: 216 non-interactive machine locations 9556 | -6/Factory | Lost 4 parts (3n1u) 9733 | -6/Factory | Joined by Warlord Geek squad 9781 | -6/Factory | Lost 3 parts (2n1w) 9869 | -6/Factory | Garrison activated, responded to threat 10081 | -6/Factory | Fabricated Biomechanical Wings? 10081 | -6/Factory | Spotted B-75 Beast 10126 | -6/Factory | Lost 6 parts (5n1w) 10157 | -6/Factory | Fabricated Biomechanical Wings? 10167 | -6/Factory | Core integrity fell below 50% 10227 | -6/Factory | Manually triggered Chute Trap 10227 | -6/Factory | Sucked down chute 10227 | -6/Factory | Entered Waste 10238 | -6/Waste | Spotted C-40 Crusher 10242 | -6/Waste | EMP discharged 10242 | -6/Waste | System corruption reached 10% 10245 | -6/Waste | Spotted C-40 Crusher 10245 | -6/Waste | Spotted C-40 Crusher 10248 | -6/Waste | Spotted C-40 Crusher 10248 | -6/Waste | Spotted C-40 Crusher 10249 | -6/Waste | Spotted C-40 Crusher 10250 | -6/Waste | Discovered new exit (range 15) 10260 | -6/Waste | Entered Factory 10306 | -6/Factory | Build established: Hacker-Mutant 10338 | -6/Factory | Core integrity fell below 20% 10366 | -6/Factory | Lost 3 parts (2n1u) 10435 | -6/Factory | Joined by Warlord Geek squad 10461 | -6/Factory | Spotted B-75 Beast 10469 | -6/Factory | Fabricated Biomechanical Wings? 10559 | -6/Factory | Identified exit to Lower Caves 10646 | -6/Factory | Joined by Warlord Dakka squad 10711 | -6/Factory | Joined by Warlord Dakka squad 10731 | -6/Factory | Hacking Suite fried by hacking feedback 10778 | -6/Factory | Destroyed by G-50 Soldier with Heavy Laser Last Messages --------------- >>Alert(Purge) Purged threat record, alert level lowered. 10741_ HA0PKRDNCU89NM %DEA2AQ: &6LKUG 10749_ Acquired Nuclear Pulse Thruster. 10751_ ALERT: Suspicious intruders detected, dispatching Cutter reinforcements to area. 10756_ K-01 Serf cleans the Assembly Bed. 10759_ G-50 Soldier suffers critical hit (Destroy). 10759_ G-50 Soldier destroyed. 10763_ F9-PCK(s) knocked back. 10763_ G-50 Soldier knocked back. 10763_ TA-W1O(s) destroyed. 10763_ K-01 Serf destroyed. 10763_ F9-PCK(s) destroyed. 10764_ System corrupted: Heat flow error (+170). 10764_ ER-VZ4(s) destroyed. 10765_ DM-TBZ(s) destroyed. 10765_ Critical hit (Burn: +37). 10776_ C-17 Slicer destroyed. Map ----- +----------------------------------------------------+ | ??????????# #?????????????????????? | | ??????????# #?????????????????????? | | ??????????# #?????????????????????? | | ??????????# #?????????????????????? | | ??????????# #?????????????????????? | | ??????????# #?????????????????????? | | ??????????# #????????"?? ?????????? | | ########### #######?"R" ????????? | | #?" " ????????? | | * #? ?????????? | | %[%=# ?????????? | | =*%[=+ ""?????????? | | ^ """""" """"""%=# """????????? | | """""" """"""[%= """????????? | | """""" """"""!% ??????????? | | """""" """"""%=# ???????????? | | =% # ?????????????? | | """! ##+#####???????? | | """ #???????? | | """ #???????? | | "" "" #???????? | | ""F"" #???????? | | """ g #???????? | | #######+################g#???????? | | ?????? #?????????????#%#???????? | | ????"" #?????????????#@#???????? | | ??#""" #?????????????# #???????? | | ??#""" #?????????????# #???????? | | ??# #????????????? ???????? | | ??#""" #?????????????###???????? | | ??#""" #???????????????????????? | | ???""" #???????????????????????? | | ???? #???????????????????????? | | ?????! #???????????????????????? | | ???? #???????????????????????? | | ????#######???????????????????????? | | ??????????????????????????????????? | | ??????????????????????????????????? | | ??????????????????????????????????? | | ??????????????????????????????????? | | ??????????????????????????????????? | | ??????????????????????????????????? | | ??????????????????????????????????? | | ??????????????????????????????????? | | ??????????????????????????????????? | | ??????????????????????????????????? | | ??????????????????????????????????? | | ??????????????????????????????????? | | ??????????????????????????????????? | | ??????????????????????????????????? | +----------------------------------------------------+ Best States ------------- Heat Dissipation 37 Energy Generation 18 Energy Capacity 250 Matter Stores 300 Matter Capacity 300 Sight Range 16 Robot Scan Range 20 Terrain Scan Density 10 ECM Strength 1 Armor Coverage 600 Propulsion Shielding 66 Evasion (%) 66 Targeting Accuracy 16 Recoil Reduction 5 Offensive Hacking 44 Defensive Hacking 20 Authchip Count 1 Item Schematics ----------------- Seismic Detector | -10/Materials | Hacked VTOL Module | -8/Materials | Hacked Cesium-ion Thruster | -8/Materials | Hacked Cld. Ion Engine | -8/Materials | Hacked Imp. Propulsion Shielding | -8/Materials | Scanalyzed Combat Drone Bay | -7/Data Miner | Free Lgt. Regenerative Plating | -7/Data Miner | Free Biomechanical Wings | -7/Data Miner | Free Gravity Neutralizer | -7/Data Miner | Free Com. Ion Cannon | -7/Data Miner | Free Arm. Medium Treads | -7/Data Miner | Free Imp. Kinecellerator | -7/Data Miner | Free Lrn. Proton Cannon | -7/Data Miner | Free Proton Cannon | -7/Data Miner | Free Nuclear Pulse Array | -7/Data Miner | Free Imp. Shock Absorption System | -7/Data Miner | Free Adv. Coolant Injector | -7/Data Miner | Free Cold Fusion Reactor | -6/Factory | Scanalyzed Hacking Suite | -6/Factory | Scanalyzed Power Amplifier | -6/Factory | Scanalyzed Rocket Launcher | -6/Factory | Scanalyzed Imp. Proton Missile Launcher | -6/Factory | Scanalyzed ECM Suite | -6/Factory | Scanalyzed Imp. Assault Rifle | -6/Factory | Scanalyzed Visual Processing Unit | -6/Factory | Scanalyzed Robot Schematics ------------------ M-28 Smith | -7/Data Miner | Free A-15 Conveyor | -7/Data Miner | Free R-10 Processor | -7/Data Miner | Free Fabricated ------------ Biomechanical Wings | x1 | -6/Factory Biomechanical Wings | x1 | -6/Factory Biomechanical Wings | x1 | -6/Factory | Authchip Alien Tech Used ----------------- None Achievements -------------- None Challenges ------------ None Game ------ Seed DerelictEnhancedPit Manual? 0 Play Time 01:32:16 Cumulative 263.8 hours Start 2024.04.24 @ 16:59:54 End 2024.04.24 @ 18:42:49 Sessions 1 Manual Loads 0 Difficulty Rogue Special Mode None Game No. 199 Rogue 199 Adventurer 0 Explorer 0 Win Type - Total 8 Types 6/0/1/1/0/0/0/0/0 Lore% 76 Gallery% 83 Achievement% 69 Wizard Run 0 Options --------- Layout 2 ASCII 1 Keyboard 0 Movement Mouse Keybinds 0 Fullscreen 2 Font 24/Smallcaps Map View 50x44 Zoom Use 0% Tactical HUD 1 Map Filters NONE Filters NONE Steam 1 RUN: efb183ec-fdf5-4263-a372-404cbb3d685c